[Event "Titled Tuesday Blitz June 20 Early 2023"]
[White "Rodrigues Mota, Romulo Cardoso S"]
[Black "Milovic, Aleksandra"]
[WhiteFideId "2187442"]
[BlackFideId "933988"]
[WhiteElo "2001"]
[BlackElo "2000"]
[Result "1-0"]
[Round "7"]
[TimeControl "180+2"]
[Date "2023.06.20"]
[WhiteClock "0:00:54"]
[BlackClock "0:01:08"]
[Board "190"]

1. e4 {[%clk 0:02:57]}  c5 {[%clk 0:02:59]} 2. Nf3 {[%clk 0:02:57]}  d6 {[%clk 0:02:59]} 3. d4 {[%clk 0:02:56]}  cxd4 {[%clk 0:03:00]} 4. Nxd4 {[%clk 0:02:57]}  Nf6 {[%clk 0:02:59]} 5. Nc3 {[%clk 0:02:55]}  a6 {[%clk 0:02:58]} 6. f3 {[%clk 0:02:54]}  e5 {[%clk 0:02:57]} 7. Nb3 {[%clk 0:02:53]}  Be6 {[%clk 0:02:57]} 8. Be3 {[%clk 0:02:48]}  Be7 {[%clk 0:02:58]} 9. Qd2 {[%clk 0:02:48]}  O-O {[%clk 0:02:58]} 10. O-O-O {[%clk 0:02:47]}  b5 {[%clk 0:02:57]} 11. g4 {[%clk 0:02:44]}  Qc7 {[%clk 0:02:56]} 12. h4 {[%clk 0:02:43]}  Rc8 {[%clk 0:02:54]} 13. g5 {[%clk 0:02:29]}  Nh5 {[%clk 0:02:51]} 14. Bh3 {[%clk 0:02:25]}  Bxh3 {[%clk 0:02:40]} 15. Rxh3 {[%clk 0:02:26]}  Nf4 {[%clk 0:02:27]} 16. Bxf4 {[%clk 0:01:42]}  exf4 {[%clk 0:02:28]} 17. Nd5 {[%clk 0:01:42]}  Qd7 {[%clk 0:02:24]} 18. Nxe7+ {[%clk 0:01:42]}  Qxe7 {[%clk 0:02:24]} 19. Qxd6 {[%clk 0:01:43]}  Qe8 {[%clk 0:02:18]} 20. Qxf4 {[%clk 0:01:38]}  Qe6 {[%clk 0:02:11]} 21. Rh2 {[%clk 0:01:36]}  a5 {[%clk 0:02:09]} 22. Kb1 {[%clk 0:01:36]}  a4 {[%clk 0:02:08]} 23. Nd4 {[%clk 0:01:37]}  Qc4 {[%clk 0:02:06]} 24. Nf5 {[%clk 0:01:37]}  Qb4 {[%clk 0:01:58]} 25. Qd6 {[%clk 0:01:33]}  Qxd6 {[%clk 0:01:51]} 26. Rxd6 {[%clk 0:01:34]}  Na6 {[%clk 0:01:45]} 27. Ne7+ {[%clk 0:01:34]}  Kf8 {[%clk 0:01:41]} 28. Nxc8 {[%clk 0:01:34]}  Rxc8 {[%clk 0:01:40]} 29. Rxa6 {[%clk 0:01:33]}  Rd8 {[%clk 0:01:36]} 30. Kc1 {[%clk 0:01:33]}  Rd4 {[%clk 0:01:31]} 31. Rd2 {[%clk 0:01:32]}  Rc4 {[%clk 0:01:29]} 32. Ra7 {[%clk 0:01:30]}  Ke8 {[%clk 0:01:29]} 33. Rdd7 {[%clk 0:01:30]}  Rc8 {[%clk 0:01:22]} 34. Re7+ {[%clk 0:01:29]}  Kf8 {[%clk 0:01:19]} 35. Rxf7+ {[%clk 0:01:23]}  Kg8 {[%clk 0:01:17]} 36. Rxg7+ {[%clk 0:01:04]}  Kh8 {[%clk 0:01:18]} 37. Rxh7+ {[%clk 0:00:49]}  Kg8 {[%clk 0:01:19]} 38. Rag7+ {[%clk 0:00:49]}  Kf8 {[%clk 0:01:18]} 39. Rh8+ {[%clk 0:00:50]}  Kxg7 {[%clk 0:01:18]} 40. Rxc8 {[%clk 0:00:51]}  Kg6 {[%clk 0:01:19]} 41. Rh8 {[%clk 0:00:50]}  Kg7 {[%clk 0:01:18]} 42. Rh6 {[%clk 0:00:50]}  Kf7 {[%clk 0:01:17]} 43. c4 {[%clk 0:00:51]}  bxc4 {[%clk 0:01:16]} 44. Kc2 {[%clk 0:00:52]}  Kg7 {[%clk 0:01:14]} 45. Kc3 {[%clk 0:00:52]}  a3 {[%clk 0:01:14]} 46. Kxc4 {[%clk 0:00:53]}  axb2 {[%clk 0:01:14]} 47. Rb6 {[%clk 0:00:53]}  b1=Q {[%clk 0:01:15]} 48. Rxb1 {[%clk 0:00:54]}  Kg6 {[%clk 0:01:10]} 49. Rb6+ {[%clk 0:00:54]}  Kh5 {[%clk 0:01:08]} 50. Rh6# {[%clk 0:00:54]} 1-0


[Site "https://www.chess.com"]

[Event "Titled Tuesday Blitz June 20 Early 2023"]
[White "Andreikin, Dmitry"]
[Black "Martinez Alcantara, Jose Eduardo"]
[WhiteFideId "4158814"]
[BlackFideId "3805662"]
[WhiteElo "2736"]
[BlackElo "2711"]
[Result "1/2-1/2"]
[Round "8"]
[TimeControl "180+2"]
[Date "2023.06.20"]
[WhiteClock "0:00:38"]
[BlackClock "0:01:13"]
[Board "2"]

1. e4 {[%clk 0:03:00]}  c5 {[%clk 0:02:59]} 2. Nc3 {[%clk 0:03:00]}  a6 {[%clk 0:02:58]} 3. Nf3 {[%clk 0:02:58]}  d6 {[%clk 0:02:58]} 4. d4 {[%clk 0:02:56]}  cxd4 {[%clk 0:02:59]} 5. Nxd4 {[%clk 0:02:56]}  e6 {[%clk 0:03:00]} 6. a4 {[%clk 0:02:53]}  b6 {[%clk 0:02:56]} 7. f4 {[%clk 0:02:52]}  Bb7 {[%clk 0:02:56]} 8. f5 {[%clk 0:02:48]}  e5 {[%clk 0:02:54]} 9. Nf3 {[%clk 0:02:46]}  Nf6 {[%clk 0:02:54]} 10. Bg5 {[%clk 0:02:39]}  Nbd7 {[%clk 0:02:54]} 11. Bc4 {[%clk 0:02:37]}  Qc7 {[%clk 0:02:50]} 12. Qe2 {[%clk 0:02:33]}  Be7 {[%clk 0:02:47]} 13. O-O {[%clk 0:02:29]}  O-O {[%clk 0:02:47]} 14. Bb3 {[%clk 0:02:27]}  Rac8 {[%clk 0:02:28]} 15. Rad1 {[%clk 0:02:25]}  h6 {[%clk 0:02:21]} 16. Bxf6 {[%clk 0:02:24]}  Nxf6 {[%clk 0:02:22]} 17. Kh1 {[%clk 0:02:07]}  b5 {[%clk 0:01:56]} 18. axb5 {[%clk 0:02:02]}  axb5 {[%clk 0:01:57]} 19. Nxb5 {[%clk 0:01:39]}  Qb6 {[%clk 0:01:56]} 20. Nd2 {[%clk 0:01:32]}  d5 {[%clk 0:01:49]} 21. exd5 {[%clk 0:01:11]}  Nxd5 {[%clk 0:01:49]} 22. Bxd5 {[%clk 0:01:04]}  Bxd5 {[%clk 0:01:48]} 23. c4 {[%clk 0:01:05]}  Bxc4 {[%clk 0:01:32]} 24. Nxc4 {[%clk 0:01:05]}  Qxb5 {[%clk 0:01:32]} 25. Qxe5 {[%clk 0:01:05]}  Qb4 {[%clk 0:01:21]} 26. Nd6 {[%clk 0:00:38]}  Bf6 {[%clk 0:01:13]} 27. Qe4 {[%clk 0:00:38]} 1/2-1/2


[Site "https://www.chess.com"]

[Event "Titled Tuesday Blitz June 20 Early 2023"]
[White "Grischuk, Alexander"]
[Black "Svane, Rasmus"]
[WhiteFideId "4126025"]
[BlackFideId "4657101"]
[WhiteElo "2721"]
[BlackElo "2601"]
[Result "1-0"]
[Round "8"]
[TimeControl "180+2"]
[Date "2023.06.20"]
[WhiteClock "0:00:51"]
[BlackClock "0:00:22"]
[Board "4"]

1. d4 {[%clk 0:03:00]}  Nf6 {[%clk 0:02:59]} 2. Nf3 {[%clk 0:03:01]}  d5 {[%clk 0:02:59]} 3. Bg5 {[%clk 0:03:01]}  Ne4 {[%clk 0:02:57]} 4. Bh4 {[%clk 0:03:01]}  c5 {[%clk 0:02:56]} 5. e3 {[%clk 0:03:01]}  Qb6 {[%clk 0:02:51]} 6. Nc3 {[%clk 0:03:01]}  Qa5 {[%clk 0:02:52]} 7. Bb5+ {[%clk 0:02:27]}  Bd7 {[%clk 0:02:52]} 8. Bxd7+ {[%clk 0:02:27]}  Nxd7 {[%clk 0:02:53]} 9. O-O {[%clk 0:02:28]}  Nxc3 {[%clk 0:02:50]} 10. bxc3 {[%clk 0:02:28]}  e6 {[%clk 0:02:49]} 11. c4 {[%clk 0:02:19]}  cxd4 {[%clk 0:02:39]} 12. Qxd4 {[%clk 0:02:17]}  dxc4 {[%clk 0:02:24]} 13. Rfd1 {[%clk 0:01:48]}  Qc7 {[%clk 0:02:23]} 14. Rab1 {[%clk 0:01:34]}  Rc8 {[%clk 0:01:56]} 15. Qxa7 {[%clk 0:01:26]}  b6 {[%clk 0:01:46]} 16. Qa4 {[%clk 0:01:26]}  Be7 {[%clk 0:01:44]} 17. Ne5 {[%clk 0:01:19]}  Rd8 {[%clk 0:01:17]} 18. Bxe7 {[%clk 0:01:18]}  Kxe7 {[%clk 0:01:18]} 19. Nc6+ {[%clk 0:01:18]}  Kf6 {[%clk 0:01:19]} 20. Qxc4 {[%clk 0:01:08]}  g5 {[%clk 0:00:45]} 21. Qd4+ {[%clk 0:01:05]}  Kg6 {[%clk 0:00:33]} 22. Nxd8 {[%clk 0:01:00]}  Rxd8 {[%clk 0:00:33]} 23. Qd6 {[%clk 0:00:58]}  Qxd6 {[%clk 0:00:23]} 24. Rxd6 {[%clk 0:00:59]}  Kf6 {[%clk 0:00:23]} 25. Rbd1 {[%clk 0:00:58]}  Ke7 {[%clk 0:00:22]} 26. c4 {[%clk 0:00:51]} 1-0


[Site "https://www.chess.com"]

[Event "Titled Tuesday Blitz June 20 Early 2023"]
[White "Gurel, Ediz"]
[Black "Bluebaum, Matthias"]
[WhiteFideId "44507356"]
[BlackFideId "24651516"]
[WhiteElo "2352"]
[BlackElo "2639"]
[Result "1-0"]
[Round "8"]
[TimeControl "180+2"]
[Date "2023.06.20"]
[WhiteClock "0:00:12"]
[BlackClock "0:00:05"]
[Board "5"]

1. e4 {[%clk 0:03:00]}  e6 {[%clk 0:02:59]} 2. d4 {[%clk 0:03:00]}  d5 {[%clk 0:03:00]} 3. Nd2 {[%clk 0:03:00]}  c5 {[%clk 0:03:00]} 4. exd5 {[%clk 0:03:01]}  Qxd5 {[%clk 0:03:01]} 5. Ngf3 {[%clk 0:03:00]}  cxd4 {[%clk 0:03:01]} 6. Bc4 {[%clk 0:03:01]}  Qd6 {[%clk 0:03:02]} 7. O-O {[%clk 0:03:01]}  Nf6 {[%clk 0:03:03]} 8. Nb3 {[%clk 0:03:01]}  Nc6 {[%clk 0:03:03]} 9. Nbxd4 {[%clk 0:03:02]}  Nxd4 {[%clk 0:03:04]} 10. Nxd4 {[%clk 0:03:03]}  Be7 {[%clk 0:03:05]} 11. Re1 {[%clk 0:03:02]}  O-O {[%clk 0:03:04]} 12. c3 {[%clk 0:03:00]}  Qc7 {[%clk 0:03:05]} 13. Bb3 {[%clk 0:02:55]}  b6 {[%clk 0:03:05]} 14. Qf3 {[%clk 0:02:47]}  Bb7 {[%clk 0:03:03]} 15. Qh3 {[%clk 0:02:45]}  Kh8 {[%clk 0:02:59]} 16. Bg5 {[%clk 0:02:42]}  Nd5 {[%clk 0:02:53]} 17. Bc2 {[%clk 0:02:38]}  g6 {[%clk 0:02:42]} 18. Bh6 {[%clk 0:02:30]}  Rg8 {[%clk 0:02:35]} 19. Be4 {[%clk 0:02:08]}  Bf6 {[%clk 0:02:26]} 20. Rad1 {[%clk 0:01:29]}  Bg7 {[%clk 0:02:15]} 21. Bxg7+ {[%clk 0:01:28]}  Rxg7 {[%clk 0:02:09]} 22. Qf3 {[%clk 0:01:27]}  Rb8 {[%clk 0:01:49]} 23. Bxd5 {[%clk 0:01:14]}  Bxd5 {[%clk 0:01:49]} 24. Qf6 {[%clk 0:01:14]}  Qd8 {[%clk 0:01:23]} 25. Qe5 {[%clk 0:01:14]}  f6 {[%clk 0:01:24]} 26. Qg3 {[%clk 0:01:13]}  Rd7 {[%clk 0:01:18]} 27. h4 {[%clk 0:00:51]}  e5 {[%clk 0:01:16]} 28. Nc2 {[%clk 0:00:52]}  Qc7 {[%clk 0:00:49]} 29. Ne3 {[%clk 0:00:40]}  Be6 {[%clk 0:00:49]} 30. h5 {[%clk 0:00:39]}  gxh5 {[%clk 0:00:40]} 31. Qh4 {[%clk 0:00:37]}  Rf8 {[%clk 0:00:40]} 32. Qxh5 {[%clk 0:00:36]}  Rg7 {[%clk 0:00:39]} 33. Qh6 {[%clk 0:00:34]}  Qf7 {[%clk 0:00:27]} 34. Rd6 {[%clk 0:00:33]}  Rg6 {[%clk 0:00:28]} 35. Qh4 {[%clk 0:00:34]}  Rfg8 {[%clk 0:00:28]} 36. Red1 {[%clk 0:00:28]}  Bc8 {[%clk 0:00:26]} 37. Rd8 {[%clk 0:00:27]}  Rxd8 {[%clk 0:00:24]} 38. Rxd8+ {[%clk 0:00:26]}  Rg8 {[%clk 0:00:25]} 39. Rxg8+ {[%clk 0:00:23]}  Kxg8 {[%clk 0:00:26]} 40. Qg3+ {[%clk 0:00:20]}  Qg6 {[%clk 0:00:25]} 41. Qf3 {[%clk 0:00:19]}  Qf7 {[%clk 0:00:18]} 42. Nd5 {[%clk 0:00:17]}  Kg7 {[%clk 0:00:15]} 43. c4 {[%clk 0:00:17]}  Be6 {[%clk 0:00:13]} 44. b3 {[%clk 0:00:17]}  Bxd5 {[%clk 0:00:10]} 45. cxd5 {[%clk 0:00:17]}  Qd7 {[%clk 0:00:10]} 46. Qe4 {[%clk 0:00:15]}  Qc7 {[%clk 0:00:06]} 47. g3 {[%clk 0:00:13]}  Qc1+ {[%clk 0:00:06]} 48. Kg2 {[%clk 0:00:13]}  Qd2 {[%clk 0:00:07]} 49. Qg4+ {[%clk 0:00:13]}  Kf7 {[%clk 0:00:07]} 50. Qe6+ {[%clk 0:00:13]}  Kg6 {[%clk 0:00:07]} 51. d6 {[%clk 0:00:13]}  e4 {[%clk 0:00:03]} 52. Qxe4+ {[%clk 0:00:11]}  f5 {[%clk 0:00:04]} 53. Qe6+ {[%clk 0:00:12]}  Kg7 {[%clk 0:00:02]} 54. d7 {[%clk 0:00:12]}  f4 {[%clk 0:00:02]} 55. Qe7+ {[%clk 0:00:12]}  Kg6 {[%clk 0:00:03]} 56. d8=Q {[%clk 0:00:12]}  f3+ {[%clk 0:00:04]} 57. Kxf3 {[%clk 0:00:13]}  Qxf2+ {[%clk 0:00:04]} 58. Kxf2 {[%clk 0:00:12]}  Kf5 {[%clk 0:00:05]} 59. Qf6+ {[%clk 0:00:12]}  Ke4 {[%clk 0:00:05]} 60. Qdd4# {[%clk 0:00:12]} 1-0


[Site "https://www.chess.com"]

[Event "Titled Tuesday Blitz June 20 Early 2023"]
[White "Pranav, V"]
[Black "Zhigalko, Sergei"]
[WhiteFideId "25060783"]
[BlackFideId "13502956"]
[WhiteElo "2533"]
[BlackElo "2626"]
[Result "1-0"]
[Round "8"]
[TimeControl "180+2"]
[Date "2023.06.20"]
[WhiteClock "0:00:05"]
[BlackClock "0:00:00"]
[Board "7"]

1. e4 {[%clk 0:03:00]}  c5 {[%clk 0:02:59]} 2. Nf3 {[%clk 0:03:01]}  Nc6 {[%clk 0:03:00]} 3. Bb5 {[%clk 0:03:01]}  Nf6 {[%clk 0:02:59]} 4. e5 {[%clk 0:02:57]}  Nd5 {[%clk 0:02:59]} 5. Bxc6 {[%clk 0:02:57]}  dxc6 {[%clk 0:02:59]} 6. d3 {[%clk 0:02:57]}  h6 {[%clk 0:02:59]} 7. O-O {[%clk 0:02:57]}  Bf5 {[%clk 0:02:58]} 8. Re1 {[%clk 0:02:56]}  Nc7 {[%clk 0:02:54]} 9. Nbd2 {[%clk 0:02:55]}  Ne6 {[%clk 0:02:54]} 10. Ne4 {[%clk 0:02:53]}  g5 {[%clk 0:02:54]} 11. h4 {[%clk 0:02:42]}  g4 {[%clk 0:02:37]} 12. Nh2 {[%clk 0:02:39]}  h5 {[%clk 0:02:34]} 13. Nf1 {[%clk 0:02:35]}  Bg7 {[%clk 0:02:33]} 14. Nfg3 {[%clk 0:02:30]}  Bg6 {[%clk 0:02:33]} 15. Ng5 {[%clk 0:02:30]}  Qd5 {[%clk 0:02:28]} 16. Nxe6 {[%clk 0:02:18]}  Qxe6 {[%clk 0:02:21]} 17. Bf4 {[%clk 0:02:15]}  O-O-O {[%clk 0:02:19]} 18. Qe2 {[%clk 0:02:06]}  Rd5 {[%clk 0:02:11]} 19. Nf1 {[%clk 0:02:04]}  Rhd8 {[%clk 0:02:05]} 20. Nd2 {[%clk 0:01:52]}  Rd4 {[%clk 0:01:39]} 21. Bg3 {[%clk 0:01:52]}  b6 {[%clk 0:01:23]} 22. a4 {[%clk 0:01:51]}  Bh6 {[%clk 0:01:14]} 23. a5 {[%clk 0:01:17]}  Kb7 {[%clk 0:00:39]} 24. axb6 {[%clk 0:01:16]}  axb6 {[%clk 0:00:40]} 25. Nc4 {[%clk 0:01:13]}  b5 {[%clk 0:00:34]} 26. Na5+ {[%clk 0:01:00]}  Kb6 {[%clk 0:00:34]} 27. Ra3 {[%clk 0:01:00]}  c4 {[%clk 0:00:28]} 28. dxc4 {[%clk 0:00:47]}  Rd2 {[%clk 0:00:26]} 29. Qf1 {[%clk 0:00:40]}  Bxc2 {[%clk 0:00:22]} 30. Kh2 {[%clk 0:00:16]}  Bd3 {[%clk 0:00:08]} 31. Qg1 {[%clk 0:00:16]}  Rxb2 {[%clk 0:00:08]} 32. f4+ {[%clk 0:00:13]}  c5 {[%clk 0:00:05]} 33. cxb5 {[%clk 0:00:10]}  Bxb5 {[%clk 0:00:06]} 34. Rc1 {[%clk 0:00:08]}  Qd5 {[%clk 0:00:04]} 35. Rac3 {[%clk 0:00:07]}  Rc8 {[%clk 0:00:03]} 36. Nc4+ {[%clk 0:00:06]}  Bxc4 {[%clk 0:00:02]} 37. Rxc4 {[%clk 0:00:07]}  Rb5 {[%clk 0:00:02]} 38. Qe3 {[%clk 0:00:06]}  e6 {[%clk 0:00:02]} 39. Bf2 {[%clk 0:00:06]}  g3+ {[%clk 0:00:01]} 40. Bxg3 {[%clk 0:00:03]}  Rg8 {[%clk 0:00:02]} 41. R1c2 {[%clk 0:00:03]}  Rg4 {[%clk 0:00:02]} 42. Ra4 {[%clk 0:00:03]}  Rb3 {[%clk 0:00:02]} 43. Rc3 {[%clk 0:00:03]}  Rb5 {[%clk 0:00:01]} 44. Rd3 {[%clk 0:00:03]}  Bxf4 {[%clk 0:00:01]} 45. Rxd5 {[%clk 0:00:02]}  Bxg3+ {[%clk 0:00:01]} 46. Qxg3 {[%clk 0:00:02]}  Rxg3 {[%clk 0:00:01]} 47. Rd6+ {[%clk 0:00:03]}  Kc7 {[%clk 0:00:01]} 48. Kxg3 {[%clk 0:00:04]}  Rb4 {[%clk 0:00:02]} 49. Rxb4 {[%clk 0:00:04]}  cxb4 {[%clk 0:00:03]} 50. Rd4 {[%clk 0:00:05]}  f5 {[%clk 0:00:00]} 51. Rxb4 {[%clk 0:00:05]} 1-0


[Site "https://www.chess.com"]

[Event "Titled Tuesday Blitz June 20 Early 2023"]
[White "Jones, Gawain C B"]
[Black "Oparin, Grigoriy"]
[WhiteFideId "409561"]
[BlackFideId "24125890"]
[WhiteElo "2645"]
[BlackElo "2647"]
[Result "0-1"]
[Round "8"]
[TimeControl "180+2"]
[Date "2023.06.20"]
[WhiteClock "0:00:00"]
[BlackClock "0:01:13"]
[Board "8"]

1. Nf3 {[%clk 0:03:00]}  Nf6 {[%clk 0:03:00]} 2. g3 {[%clk 0:03:00]}  g6 {[%clk 0:02:58]} 3. b3 {[%clk 0:03:00]}  Bg7 {[%clk 0:02:58]} 4. Bb2 {[%clk 0:03:01]}  b6 {[%clk 0:02:57]} 5. Bg2 {[%clk 0:03:00]}  Bb7 {[%clk 0:02:57]} 6. O-O {[%clk 0:03:01]}  O-O {[%clk 0:02:58]} 7. c4 {[%clk 0:03:01]}  c5 {[%clk 0:02:58]} 8. Nc3 {[%clk 0:02:59]}  d5 {[%clk 0:02:58]} 9. Nxd5 {[%clk 0:02:59]}  Nxd5 {[%clk 0:02:58]} 10. Bxg7 {[%clk 0:02:59]}  Kxg7 {[%clk 0:02:59]} 11. cxd5 {[%clk 0:03:00]}  Qxd5 {[%clk 0:02:53]} 12. d4 {[%clk 0:02:59]}  Na6 {[%clk 0:02:48]} 13. Nh4 {[%clk 0:01:52]}  Qd7 {[%clk 0:02:47]} 14. dxc5 {[%clk 0:01:52]}  Qxd1 {[%clk 0:02:46]} 15. Rfxd1 {[%clk 0:01:53]}  Bxg2 {[%clk 0:02:46]} 16. Nxg2 {[%clk 0:01:47]}  Nxc5 {[%clk 0:02:47]} 17. b4 {[%clk 0:01:47]}  Ne4 {[%clk 0:02:42]} 18. Rd7 {[%clk 0:01:43]}  Rfe8 {[%clk 0:02:24]} 19. Rc1 {[%clk 0:01:27]}  Nf6 {[%clk 0:02:19]} 20. Rdd1 {[%clk 0:01:05]}  Rec8 {[%clk 0:02:18]} 21. Nf4 {[%clk 0:00:59]}  e6 {[%clk 0:02:15]} 22. f3 {[%clk 0:00:55]}  g5 {[%clk 0:02:15]} 23. Nd3 {[%clk 0:00:53]}  a5 {[%clk 0:02:06]} 24. b5 {[%clk 0:00:39]}  Nd5 {[%clk 0:02:06]} 25. Kf2 {[%clk 0:00:34]}  Nc3 {[%clk 0:02:04]} 26. Rd2 {[%clk 0:00:33]}  Nxb5 {[%clk 0:02:03]} 27. Rb2 {[%clk 0:00:22]}  Rxc1 {[%clk 0:01:57]} 28. Nxc1 {[%clk 0:00:22]}  Rc8 {[%clk 0:01:58]} 29. Rxb5 {[%clk 0:00:18]}  Rxc1 {[%clk 0:01:58]} 30. Rxb6 {[%clk 0:00:14]}  Rc5 {[%clk 0:01:43]} 31. a4 {[%clk 0:00:10]}  Kf6 {[%clk 0:01:44]} 32. Ra6 {[%clk 0:00:07]}  h5 {[%clk 0:01:42]} 33. Ra7 {[%clk 0:00:07]}  Kg6 {[%clk 0:01:40]} 34. Ke3 {[%clk 0:00:07]}  f6 {[%clk 0:01:31]} 35. Kd4 {[%clk 0:00:06]}  Rd5+ {[%clk 0:01:31]} 36. Kc3 {[%clk 0:00:02]}  Re5 {[%clk 0:01:30]} 37. e4 {[%clk 0:00:02]}  g4 {[%clk 0:01:29]} 38. fxg4 {[%clk 0:00:02]}  hxg4 {[%clk 0:01:27]} 39. Kd4 {[%clk 0:00:03]}  Rh5 {[%clk 0:01:25]} 40. Ra6 {[%clk 0:00:02]}  e5+ {[%clk 0:01:22]} 41. Kd5 {[%clk 0:00:02]}  Rxh2 {[%clk 0:01:23]} 42. Rxa5 {[%clk 0:00:03]}  Rg2 {[%clk 0:01:23]} 43. Ra8 {[%clk 0:00:03]}  Rxg3 {[%clk 0:01:23]} 44. Ke6 {[%clk 0:00:04]}  Kg5 {[%clk 0:01:19]} 45. a5 {[%clk 0:00:03]}  Ra3 {[%clk 0:01:18]} 46. a6 {[%clk 0:00:02]}  g3 {[%clk 0:01:16]} 47. a7 {[%clk 0:00:01]}  Kf4 {[%clk 0:01:15]} 48. Kxf6 {[%clk 0:00:02]}  g2 {[%clk 0:01:11]} 49. Rg8 {[%clk 0:00:02]}  Rxa7 {[%clk 0:01:12]} 50. Rxg2 {[%clk 0:00:01]}  Ra6+ {[%clk 0:01:12]} 51. Ke7 {[%clk 0:00:02]}  Kxe4 {[%clk 0:01:13]} 52. Re2+ {[%clk 0:00:02]}  Kf4 {[%clk 0:01:13]} 53. Rf2+ {[%clk 0:00:03]}  Ke3 {[%clk 0:01:13]} 54. Rh2 {[%clk 0:00:00]}  e4 {[%clk 0:01:13]} 0-1


[Site "https://www.chess.com"]

[Event "Titled Tuesday Blitz June 20 Early 2023"]
[White "Kramnik, Vladimir"]
[Black "Pap, Gyula"]
[WhiteFideId "4101588"]
[BlackFideId "725323"]
[WhiteElo "2703"]
[BlackElo "2519"]
[Result "1-0"]
[Round "8"]
[TimeControl "180+2"]
[Date "2023.06.20"]
[WhiteClock "0:00:04"]
[BlackClock "0:00:03"]
[Board "11"]

1. e4 {[%clk 0:03:00]}  e5 {[%clk 0:02:59]} 2. Nf3 {[%clk 0:03:00]}  Nc6 {[%clk 0:02:59]} 3. Bc4 {[%clk 0:03:00]}  Nf6 {[%clk 0:03:00]} 4. d3 {[%clk 0:03:00]}  d5 {[%clk 0:03:00]} 5. exd5 {[%clk 0:03:00]}  Nxd5 {[%clk 0:03:01]} 6. O-O {[%clk 0:03:00]}  Nb6 {[%clk 0:03:01]} 7. Bb5 {[%clk 0:02:54]}  Bd6 {[%clk 0:03:01]} 8. d4 {[%clk 0:02:48]}  e4 {[%clk 0:02:47]} 9. Re1 {[%clk 0:02:43]}  f5 {[%clk 0:02:47]} 10. Bg5 {[%clk 0:02:39]}  Qd7 {[%clk 0:02:17]} 11. c4 {[%clk 0:02:32]}  O-O {[%clk 0:02:06]} 12. c5 {[%clk 0:02:29]}  exf3 {[%clk 0:01:59]} 13. cxd6 {[%clk 0:02:06]}  Qxd6 {[%clk 0:01:54]} 14. d5 {[%clk 0:01:37]}  Qg6 {[%clk 0:01:09]} 15. dxc6 {[%clk 0:01:32]}  bxc6 {[%clk 0:01:09]} 16. Qxf3 {[%clk 0:01:10]}  cxb5 {[%clk 0:01:06]} 17. Be7 {[%clk 0:01:07]}  Rf7 {[%clk 0:00:56]} 18. Nc3 {[%clk 0:01:03]}  Bd7 {[%clk 0:00:53]} 19. Bc5 {[%clk 0:00:49]}  Bc6 {[%clk 0:00:29]} 20. Qg3 {[%clk 0:00:49]}  Qxg3 {[%clk 0:00:18]} 21. hxg3 {[%clk 0:00:50]}  Re8 {[%clk 0:00:19]} 22. Rxe8+ {[%clk 0:00:47]}  Bxe8 {[%clk 0:00:20]} 23. b3 {[%clk 0:00:44]}  a6 {[%clk 0:00:18]} 24. Re1 {[%clk 0:00:43]}  Bc6 {[%clk 0:00:11]} 25. f3 {[%clk 0:00:41]}  h6 {[%clk 0:00:07]} 26. Kf2 {[%clk 0:00:38]}  Nd7 {[%clk 0:00:07]} 27. Re8+ {[%clk 0:00:28]}  Kh7 {[%clk 0:00:06]} 28. Bd4 {[%clk 0:00:28]}  Nc5 {[%clk 0:00:02]} 29. Re3 {[%clk 0:00:24]}  Nd7 {[%clk 0:00:02]} 30. Re6 {[%clk 0:00:24]}  Bb7 {[%clk 0:00:02]} 31. b4 {[%clk 0:00:22]}  Nf8 {[%clk 0:00:02]} 32. Re8 {[%clk 0:00:20]}  Nd7 {[%clk 0:00:02]} 33. a3 {[%clk 0:00:18]}  Nb6 {[%clk 0:00:02]} 34. Bxb6 {[%clk 0:00:15]}  cxb6 {[%clk 0:00:03]} 35. Ne2 {[%clk 0:00:15]}  Rc7 {[%clk 0:00:03]} 36. Nd4 {[%clk 0:00:14]}  Bd5 {[%clk 0:00:01]} 37. Nxf5 {[%clk 0:00:13]}  Rc2+ {[%clk 0:00:01]} 38. Re2 {[%clk 0:00:12]}  Rc3 {[%clk 0:00:01]} 39. Re7 {[%clk 0:00:11]}  Kg6 {[%clk 0:00:01]} 40. g4 {[%clk 0:00:09]}  Kf6 {[%clk 0:00:01]} 41. Rxg7 {[%clk 0:00:09]}  Be6 {[%clk 0:00:02]} 42. Rb7 {[%clk 0:00:08]}  Bxf5 {[%clk 0:00:01]} 43. gxf5 {[%clk 0:00:08]}  Kxf5 {[%clk 0:00:02]} 44. Rxb6 {[%clk 0:00:09]}  Rxa3 {[%clk 0:00:03]} 45. Rxh6 {[%clk 0:00:09]}  Ra4 {[%clk 0:00:03]} 46. Rh5+ {[%clk 0:00:09]}  Kf6 {[%clk 0:00:04]} 47. Rh4 {[%clk 0:00:07]}  a5 {[%clk 0:00:03]} 48. Rf4+ {[%clk 0:00:07]}  Kg5 {[%clk 0:00:01]} 49. Rg4+ {[%clk 0:00:07]}  Kf6 {[%clk 0:00:02]} 50. bxa5 {[%clk 0:00:07]}  Rxa5 {[%clk 0:00:02]} 51. Rb4 {[%clk 0:00:06]}  Ke5 {[%clk 0:00:02]} 52. g4 {[%clk 0:00:06]}  Kd5 {[%clk 0:00:03]} 53. Kg3 {[%clk 0:00:05]}  Kc5 {[%clk 0:00:04]} 54. Rb1 {[%clk 0:00:05]}  b4 {[%clk 0:00:05]} 55. g5 {[%clk 0:00:05]}  Kc4 {[%clk 0:00:05]} 56. Kg4 {[%clk 0:00:05]}  b3 {[%clk 0:00:05]} 57. f4 {[%clk 0:00:06]}  Ra2 {[%clk 0:00:06]} 58. g6 {[%clk 0:00:05]}  Rg2+ {[%clk 0:00:06]} 59. Kf5 {[%clk 0:00:05]}  b2 {[%clk 0:00:06]} 60. Kf6 {[%clk 0:00:05]}  Kd5 {[%clk 0:00:05]} 61. g7 {[%clk 0:00:04]}  Ke4 {[%clk 0:00:03]} 62. Rxb2 {[%clk 0:00:05]}  Rxb2 {[%clk 0:00:02]} 63. g8=Q {[%clk 0:00:04]}  Rf2 {[%clk 0:00:02]} 64. Qc4+ {[%clk 0:00:03]}  Ke3 {[%clk 0:00:01]} 65. Kf5 {[%clk 0:00:03]}  Rf3 {[%clk 0:00:01]} 66. Qe4+ {[%clk 0:00:04]}  Kf2 {[%clk 0:00:02]} 67. Qxf3+ {[%clk 0:00:04]}  Kxf3 {[%clk 0:00:03]} 68. Kg5 {[%clk 0:00:04]} 1-0


[Site "https://www.chess.com"]